[Event "Late-Titled-Tuesday-Blitz-May-28-2024"]
[Site "Chess.com"]
[Date "2024.05.28"]
[Round "6"]
[White "topce"]
[Black "GlavkonVVS"]
[Result "1-0"]
[WhiteElo "2404"]
[BlackElo "2557"]
[TimeControl "180+1"]
[EndTime "15:07:25 PDT"]
[Termination "topce won by resignation"]

1. c4 {[%clk 0:03:00.9]} 1... Nf6 {[%clk 0:03:00.4]} 2. Nc3 {[%clk 0:03:00]}
2... c5 {[%clk 0:03:00.9]} 3. g3 {[%clk 0:02:59.4]} 3... d6 {[%clk 0:03:00.1]}
4. Bg2 {[%clk 0:02:59.7]} 4... Nc6 {[%clk 0:02:59.7]} 5. d3 {[%clk 0:03:00.1]}
5... e6 {[%clk 0:03:00]} 6. Nf3 {[%clk 0:02:52.2]} 6... Be7 {[%clk 0:02:58.7]}
7. O-O {[%clk 0:02:52.1]} 7... O-O {[%clk 0:02:58.7]} 8. b3 {[%clk 0:02:52.4]}
8... a6 {[%clk 0:02:58.5]} 9. Bb2 {[%clk 0:02:52.1]} 9... Rb8 {[%clk 0:02:58.5]}
10. d4 {[%clk 0:02:52]} 10... cxd4 {[%clk 0:02:55.9]} 11. Nxd4 {[%clk
0:02:52.9]} 11... Bd7 {[%clk 0:02:56.1]} 12. Nc2 {[%clk 0:02:52]} 12... Qa5
{[%clk 0:02:54.4]} 13. a3 {[%clk 0:02:48.8]} 13... Rfc8 {[%clk 0:02:52.6]} 14.
e4 {[%clk 0:02:42.5]} 14... Ne5 {[%clk 0:02:38.6]} 15. Rb1 {[%clk 0:02:07.3]}
15... b5 {[%clk 0:02:24.8]} 16. f4 {[%clk 0:01:54.9]} 16... Qb6+ {[%clk
0:02:24.1]} 17. Kh1 {[%clk 0:01:54]} 17... Neg4 {[%clk 0:02:23.5]} 18. Qe2
{[%clk 0:01:43.2]} 18... bxc4 {[%clk 0:02:14.2]} 19. b4 {[%clk 0:01:42.5]} 19...
h5 {[%clk 0:02:02.5]} 20. h3 {[%clk 0:01:34.4]} 20... Nh6 {[%clk 0:02:01.6]} 21.
Ne3 {[%clk 0:01:32.5]} 21... Qc7 {[%clk 0:01:53.4]} 22. Rbd1 {[%clk 0:01:30.8]}
22... a5 {[%clk 0:01:43.5]} 23. e5 {[%clk 0:01:25.8]} 23... dxe5 {[%clk
0:01:39.8]} 24. fxe5 {[%clk 0:01:25.8]} 24... Qxe5 {[%clk 0:01:34.5]} 25. Ncd5
{[%clk 0:01:12.8]} 25... c3 {[%clk 0:00:53.6]} 26. Nxe7+ {[%clk 0:01:12.1]}
26... Kf8 {[%clk 0:00:53.8]} 27. Rxf6 {[%clk 0:00:55.3]} 27... gxf6 {[%clk
0:00:45.7]} 28. Nxc8 {[%clk 0:00:47.8]} 28... cxb2 {[%clk 0:00:45.2]} 29. Nd6
{[%clk 0:00:34.7]} 29... Qxd6 {[%clk 0:00:34.8]} 30. Qxb2 {[%clk 0:00:31.2]}
30... Qxg3 {[%clk 0:00:30.8]} 31. Qxf6 {[%clk 0:00:27.8]} 31... Qxe3 {[%clk
0:00:26.6]} 32. Rxd7 {[%clk 0:00:23.4]} 32... Rc8 {[%clk 0:00:18.5]} 33. Qe7+
{[%clk 0:00:14.1]} 33... Kg7 {[%clk 0:00:17.6]} 34. Rd1 {[%clk 0:00:13.3]} 34...
Nf5 {[%clk 0:00:15]} 35. Qd7 {[%clk 0:00:13.2]} 35... Rc2 {[%clk 0:00:14.1]} 36.
Qd3 {[%clk 0:00:11]} 36... Ng3+ {[%clk 0:00:12.8]} 37. Kh2 {[%clk 0:00:11.4]}
37... Qxd3 {[%clk 0:00:11.2]} 38. Rxd3 {[%clk 0:00:12.3]} 38... Nf5 {[%clk
0:00:11.4]} 39. bxa5 {[%clk 0:00:12.4]} 39... Ra2 {[%clk 0:00:10.8]} 40. a6
{[%clk 0:00:12.8]} 40... Nh4 {[%clk 0:00:08.3]} 41. Rg3+ {[%clk 0:00:10.5]}
41... Kf6 {[%clk 0:00:08.4]} 42. a7 {[%clk 0:00:11.4]} 42... Nxg2 {[%clk
0:00:08]} 43. a8=Q {[%clk 0:00:11.4]} 43... Nf4+ {[%clk 0:00:07.4]} 44. Kg1
{[%clk 0:00:11.7]} 44... Ne2+ {[%clk 0:00:06.3]} 45. Kf2 {[%clk 0:00:12.2]}
45... Nd4+ {[%clk 0:00:04.2]} 46. Ke1 {[%clk 0:00:10.9]} 46... Nc2+ {[%clk
0:00:03.4]} 47. Kd1 {[%clk 0:00:11]} 47... Nxa3 {[%clk 0:00:01.2]} 48. Rxa3
{[%clk 0:00:10.8]} 1-0

[Event "Late-Titled-Tuesday-Blitz-May-28-2024"]
[Site "Chess.com"]
[Date "2024.05.28"]
[Round "6"]
[White "subham777"]
[Black "TheAlienParty"]
[Result "1-0"]
[WhiteElo "2568"]
[BlackElo "2379"]
[TimeControl "180+1"]
[EndTime "15:07:27 PDT"]
[Termination "subham777 won on time"]

1. e4 {[%clk 0:03:00.9]} 1... e5 {[%clk 0:02:58.2]} 2. Nf3 {[%clk 0:03:00.1]}
2... Nc6 {[%clk 0:02:57.8]} 3. Bc4 {[%clk 0:02:58.8]} 3... Bc5 {[%clk 0:02:57]}
4. c3 {[%clk 0:02:55.5]} 4... Nf6 {[%clk 0:02:56.6]} 5. d3 {[%clk 0:02:54.1]}
5... O-O {[%clk 0:02:55.7]} 6. Nbd2 {[%clk 0:02:54.1]} 6... d5 {[%clk
0:02:55.4]} 7. exd5 {[%clk 0:02:55]} 7... Nxd5 {[%clk 0:02:55.2]} 8. Ne4 {[%clk
0:02:55.9]} 8... Be7 {[%clk 0:02:54.2]} 9. Nfg5 {[%clk 0:02:55.4]} 9... h6
{[%clk 0:02:52.6]} 10. h4 {[%clk 0:02:54.2]} 10... hxg5 {[%clk 0:02:39.9]} 11.
hxg5 {[%clk 0:02:51.9]} 11... g6 {[%clk 0:02:30.1]} 12. Qf3 {[%clk 0:02:51]}
12... Nf4 {[%clk 0:01:52.2]} 13. Bxf4 {[%clk 0:02:44.6]} 13... exf4 {[%clk
0:01:51.8]} 14. Qxf4 {[%clk 0:02:44.5]} 14... Kg7 {[%clk 0:01:19.7]} 15. O-O-O
{[%clk 0:02:29.9]} 15... Be6 {[%clk 0:01:18.8]} 16. Nf6 {[%clk 0:02:28.8]} 16...
Rh8 {[%clk 0:01:17.5]} 17. Rxh8 {[%clk 0:01:38.4]} 17... Qxh8 {[%clk 0:01:16.2]}
18. Bxe6 {[%clk 0:01:34.7]} 18... fxe6 {[%clk 0:01:11.9]} 19. Qxc7 {[%clk
0:01:35.2]} 19... Qb8 {[%clk 0:01:05.6]} 20. Qd7 {[%clk 0:01:12.2]} 20... Qf4+
{[%clk 0:01:04.5]} 21. Kb1 {[%clk 0:01:09.7]} 21... Qxg5 {[%clk 0:01:01.1]} 22.
Ne4 {[%clk 0:01:00.1]} 22... Qd5 {[%clk 0:00:53.5]} 23. Qc7 {[%clk 0:00:48.1]}
23... Rb8 {[%clk 0:00:36.4]} 24. f3 {[%clk 0:00:29.3]} 24... Qd8 {[%clk
0:00:35.6]} 25. Qg3 {[%clk 0:00:27]} 25... Bh4 {[%clk 0:00:32]} 26. Qh3 {[%clk
0:00:26.6]} 26... Bf6 {[%clk 0:00:20.8]} 27. Qxe6 {[%clk 0:00:24.5]} 27... Qe7
{[%clk 0:00:20.5]} 28. Qg4 {[%clk 0:00:20.1]} 28... Rh8 {[%clk 0:00:19.4]} 29.
d4 {[%clk 0:00:19.2]} 29... Rh4 {[%clk 0:00:18.8]} 30. Qg3 {[%clk 0:00:19.2]}
30... Nd8 {[%clk 0:00:17.2]} 31. d5 {[%clk 0:00:15]} 31... Nf7 {[%clk
0:00:16.7]} 32. d6 {[%clk 0:00:14.9]} 32... Qd8 {[%clk 0:00:16.5]} 33. d7 {[%clk
0:00:10]} 33... Be5 {[%clk 0:00:15.2]} 34. Qf2 {[%clk 0:00:08]} 34... Rh8 {[%clk
0:00:14.8]} 35. Qxa7 {[%clk 0:00:07]} 35... Rf8 {[%clk 0:00:13.4]} 36. Qxb7
{[%clk 0:00:06.6]} 36... Bf4 {[%clk 0:00:12.9]} 37. Qd5 {[%clk 0:00:06.6]} 37...
Ne5 {[%clk 0:00:12.7]} 38. Nc5 {[%clk 0:00:06.6]} 38... Qe7 {[%clk 0:00:09.8]}
39. Ne6+ {[%clk 0:00:07]} 39... Kh6 {[%clk 0:00:09.8]} 40. Nxf8 {[%clk
0:00:07.3]} 40... Nxd7 {[%clk 0:00:09.6]} 41. Nxd7 {[%clk 0:00:06.9]} 41... Qe2
{[%clk 0:00:09.1]} 42. Qd3 {[%clk 0:00:06.9]} 42... Qxg2 {[%clk 0:00:08.7]} 43.
Nf8 {[%clk 0:00:07.2]} 43... Kg7 {[%clk 0:00:07]} 44. Qxg6+ {[%clk 0:00:07.3]}
44... Qxg6+ {[%clk 0:00:06.6]} 45. Nxg6 {[%clk 0:00:08.2]} 45... Kxg6 {[%clk
0:00:07]} 46. a4 {[%clk 0:00:09.1]} 46... Kf5 {[%clk 0:00:07.3]} 47. b4 {[%clk
0:00:10]} 47... Ke6 {[%clk 0:00:07.6]} 48. Kc2 {[%clk 0:00:10.9]} 1-0

[Event "Late-Titled-Tuesday-Blitz-May-28-2024"]
[Site "Chess.com"]
[Date "2024.05.28"]
[Round "6"]
[White "Denmark2015"]
[Black "Mariia89"]
[Result "0-1"]
[WhiteElo "2549"]
[BlackElo "2223"]
[TimeControl "180+1"]
[EndTime "15:07:27 PDT"]
[Termination "Mariia89 won on time"]

1. d4 {[%clk 0:03:00.9]} 1... Nf6 {[%clk 0:02:59.1]} 2. c4 {[%clk 0:02:59.8]}
2... c5 {[%clk 0:02:58.9]} 3. d5 {[%clk 0:02:59.9]} 3... b5 {[%clk 0:02:59.6]}
4. cxb5 {[%clk 0:03:00.2]} 4... a6 {[%clk 0:03:00.3]} 5. bxa6 {[%clk 0:03:01.1]}
5... Bxa6 {[%clk 0:03:00.1]} 6. Nc3 {[%clk 0:03:02]} 6... d6 {[%clk 0:03:00.1]}
7. Nf3 {[%clk 0:03:02.7]} 7... g6 {[%clk 0:03:00]} 8. g3 {[%clk 0:03:03.1]} 8...
Bg7 {[%clk 0:03:00.2]} 9. Bg2 {[%clk 0:03:03.5]} 9... O-O {[%clk 0:03:00]} 10.
Rb1 {[%clk 0:03:03.5]} 10... Nbd7 {[%clk 0:02:58.9]} 11. O-O {[%clk 0:03:03.2]}
11... Qa5 {[%clk 0:02:56.7]} 12. Bd2 {[%clk 0:03:03.2]} 12... Rfb8 {[%clk
0:02:54.7]} 13. b3 {[%clk 0:02:59.6]} 13... Qb6 {[%clk 0:02:41.5]} 14. Ne1
{[%clk 0:02:54.5]} 14... Ne8 {[%clk 0:02:21.3]} 15. Nc2 {[%clk 0:02:32]} 15...
Nc7 {[%clk 0:02:20.5]} 16. a4 {[%clk 0:02:25.3]} 16... Qb7 {[%clk 0:02:03.7]}
17. Na3 {[%clk 0:02:19.8]} 17... h5 {[%clk 0:01:38.2]} 18. h3 {[%clk 0:02:17]}
18... Nf6 {[%clk 0:01:32.1]} 19. Bg5 {[%clk 0:01:56.9]} 19... Qb4 {[%clk
0:01:25.2]} 20. Qc1 {[%clk 0:01:49.3]} 20... Ng4 {[%clk 0:00:31.5]} 21. Na2
{[%clk 0:01:42.7]} 21... Qd4 {[%clk 0:00:15.3]} 22. hxg4 {[%clk 0:01:35.3]}
22... Bxe2 {[%clk 0:00:15.6]} 23. Be3 {[%clk 0:01:30.8]} 23... Qxg4 {[%clk
0:00:15.8]} 24. Re1 {[%clk 0:01:27.5]} 24... Bf3 {[%clk 0:00:14.7]} 25. Qc4
{[%clk 0:00:37.5]} 25... Qf5 {[%clk 0:00:12]} 26. Bxf3 {[%clk 0:00:32.2]} 26...
Qxf3 {[%clk 0:00:12.9]} 27. Red1 {[%clk 0:00:28.9]} 27... Be5 {[%clk 0:00:07.1]}
28. Qd3 {[%clk 0:00:21.1]} 28... Bxg3 {[%clk 0:00:02.7]} 29. fxg3 {[%clk
0:00:21]} 29... Qxg3+ {[%clk 0:00:03.6]} 30. Kf1 {[%clk 0:00:21.5]} 30... Qf3+
{[%clk 0:00:04]} 31. Bf2 {[%clk 0:00:20.6]} 31... Qh1+ {[%clk 0:00:03.6]} 32.
Ke2 {[%clk 0:00:20.9]} 32... Qh2 {[%clk 0:00:03.7]} 33. Rh1 {[%clk 0:00:20.2]}
33... Qe5+ {[%clk 0:00:04.3]} 34. Kd2 {[%clk 0:00:13.1]} 34... Nxd5 {[%clk
0:00:04.8]} 35. Nc4 {[%clk 0:00:11.9]} 35... Qf4+ {[%clk 0:00:04.8]} 36. Be3
{[%clk 0:00:11.3]} 36... Qf6 {[%clk 0:00:03]} 37. Rbf1 {[%clk 0:00:10.4]} 37...
Qe6 {[%clk 0:00:02.9]} 38. Nc1 {[%clk 0:00:06.4]} 38... Nb4 {[%clk 0:00:03.3]}
39. Qe2 {[%clk 0:00:04.1]} 39... Nc6 {[%clk 0:00:03.9]} 40. Bh6 {[%clk
0:00:01.7]} 40... Qxe2+ {[%clk 0:00:02.6]} 41. Kxe2 {[%clk 0:00:00.5]} 41...
Nd4+ {[%clk 0:00:02.8]} 0-1

[Event "Late-Titled-Tuesday-Blitz-May-28-2024"]
[Site "Chess.com"]
[Date "2024.05.28"]
[Round "6"]
[White "Navyblue1"]
[Black "Romkachess"]
[Result "0-1"]
[WhiteElo "2231"]
[BlackElo "2567"]
[TimeControl "180+1"]
[EndTime "15:07:28 PDT"]
[Termination "Romkachess won by resignation"]

1. d4 {[%clk 0:02:59.5]} 1... Nf6 {[%clk 0:02:56.2]} 2. c4 {[%clk 0:02:58.9]}
2... e6 {[%clk 0:02:54.5]} 3. Nf3 {[%clk 0:02:54.5]} 3... b6 {[%clk 0:02:52.9]}
4. g3 {[%clk 0:02:48.8]} 4... Bb7 {[%clk 0:02:52.7]} 5. Bg2 {[%clk 0:02:49]}
5... Bb4+ {[%clk 0:02:52.6]} 6. Bd2 {[%clk 0:02:48.3]} 6... Be7 {[%clk
0:02:51.1]} 7. O-O {[%clk 0:02:46.9]} 7... O-O {[%clk 0:02:51.6]} 8. Nc3 {[%clk
0:02:45.7]} 8... c5 {[%clk 0:02:51.7]} 9. dxc5 {[%clk 0:02:39.7]} 9... Bxc5
{[%clk 0:02:45.1]} 10. Qc2 {[%clk 0:02:30.6]} 10... d5 {[%clk 0:02:40.3]} 11.
cxd5 {[%clk 0:02:28.3]} 11... Nxd5 {[%clk 0:02:33.9]} 12. Nxd5 {[%clk
0:02:25.6]} 12... Bxd5 {[%clk 0:02:23]} 13. Bc3 {[%clk 0:02:24.6]} 13... Nd7
{[%clk 0:02:21.2]} 14. e4 {[%clk 0:02:18.9]} 14... Bb7 {[%clk 0:02:16.8]} 15.
Rfd1 {[%clk 0:02:16.7]} 15... Qe7 {[%clk 0:02:08.6]} 16. e5 {[%clk 0:01:59.8]}
16... Rab8 {[%clk 0:01:53.9]} 17. Qd2 {[%clk 0:01:55.6]} 17... Rfd8 {[%clk
0:01:50.9]} 18. Qf4 {[%clk 0:01:40.6]} 18... h6 {[%clk 0:01:45.4]} 19. h4 {[%clk
0:01:35.4]} 19... Nf8 {[%clk 0:01:29.4]} 20. b4 {[%clk 0:01:05.8]} 20... Ng6
{[%clk 0:01:19.5]} 21. Qc4 {[%clk 0:00:35.8]} 21... Bd5 {[%clk 0:01:18.8]} 22.
Qb5 {[%clk 0:00:33.8]} 22... a6 {[%clk 0:01:08.8]} 23. Qxa6 {[%clk 0:00:16.4]}
23... Bxb4 {[%clk 0:01:08.7]} 24. Bxb4 {[%clk 0:00:16.3]} 24... Qxb4 {[%clk
0:01:08.7]} 25. Qe2 {[%clk 0:00:14.2]} 25... Qe4 {[%clk 0:01:04.8]} 26. Qxe4
{[%clk 0:00:12.7]} 26... Bxe4 {[%clk 0:01:05.7]} 27. Re1 {[%clk 0:00:12.6]}
27... Bd5 {[%clk 0:01:04.2]} 28. a3 {[%clk 0:00:10.1]} 28... Ra8 {[%clk
0:01:04.1]} 29. Re3 {[%clk 0:00:06.9]} 29... Ra5 {[%clk 0:01:04.2]} 30. Rb1
{[%clk 0:00:06.6]} 30... Bxf3 {[%clk 0:01:02.5]} 31. Bxf3 {[%clk 0:00:06.1]}
31... Nxe5 {[%clk 0:01:03.3]} 32. Be2 {[%clk 0:00:04]} 32... Rd6 {[%clk
0:00:58.4]} 33. Rb4 {[%clk 0:00:01.8]} 33... Nd7 {[%clk 0:00:58.1]} 34. Reb3
{[%clk 0:00:01]} 34... g6 {[%clk 0:00:57.7]} 35. Bb5 {[%clk 0:00:01]} 35... Nc5
{[%clk 0:00:58.1]} 36. Re3 {[%clk 0:00:01]} 36... Kg7 {[%clk 0:00:57.3]} 37. Be2
{[%clk 0:00:01]} 37... Nd7 {[%clk 0:00:56.8]} 38. Kg2 {[%clk 0:00:01.3]} 38...
Nf6 {[%clk 0:00:57.7]} 39. Reb3 {[%clk 0:00:01.1]} 39... Nd5 {[%clk 0:00:58.6]}
40. Re4 {[%clk 0:00:01]} 40... Ra8 {[%clk 0:00:59.5]} 41. Rd4 {[%clk 0:00:00.5]}
41... Rc6 {[%clk 0:00:59]} 42. Bf3 {[%clk 0:00:00.8]} 42... Rc5 {[%clk
0:00:59.6]} 43. Bxd5 {[%clk 0:00:01]} 43... exd5 {[%clk 0:00:59.9]} 44. Rbd3
{[%clk 0:00:01]} 44... Rca5 {[%clk 0:00:59.8]} 45. Rxd5 {[%clk 0:00:01.2]} 45...
Rxa3 {[%clk 0:00:58.5]} 46. Rd6 {[%clk 0:00:01]} 46... Rxd3 {[%clk 0:00:58]} 47.
Rxd3 {[%clk 0:00:01.9]} 47... Rb8 {[%clk 0:00:58.7]} 48. Rb3 {[%clk 0:00:02.4]}
48... b5 {[%clk 0:00:59.6]} 49. Rb4 {[%clk 0:00:03]} 49... Rb7 {[%clk
0:00:59.5]} 50. Kf3 {[%clk 0:00:03.4]} 50... h5 {[%clk 0:01:00]} 51. Ke4 {[%clk
0:00:03.7]} 51... f5+ {[%clk 0:01:00.9]} 52. Ke5 {[%clk 0:00:03.9]} 52... Kf7
{[%clk 0:01:01.3]} 53. Kd5 {[%clk 0:00:04.3]} 53... Kf6 {[%clk 0:01:01.7]} 54.
f4 {[%clk 0:00:03.8]} 54... Rd7+ {[%clk 0:01:00]} 55. Kc6 {[%clk 0:00:03.9]}
55... Rd3 {[%clk 0:01:00.6]} 56. Rxb5 {[%clk 0:00:04.1]} 56... Rxg3 {[%clk
0:01:01.2]} 57. Kd6 {[%clk 0:00:04.5]} 57... Rg4 {[%clk 0:01:01.7]} 58. Kd5
{[%clk 0:00:02.6]} 58... Rxf4 {[%clk 0:01:01.4]} 59. Rb6+ {[%clk 0:00:03.3]}
59... Kg7 {[%clk 0:01:01.7]} 60. Ke6 {[%clk 0:00:02.9]} 60... Rxh4 {[%clk
0:01:00.7]} 61. Rb7+ {[%clk 0:00:02.9]} 61... Kh6 {[%clk 0:00:59.9]} 62. Kf6
{[%clk 0:00:02.8]} 62... Ra4 {[%clk 0:00:56.5]} 63. Rb6 {[%clk 0:00:02.4]} 63...
h4 {[%clk 0:00:54.7]} 64. Kf7 {[%clk 0:00:02.7]} 64... Rg4 {[%clk 0:00:54.7]}
65. Rb8 {[%clk 0:00:02.9]} 65... Kg5 {[%clk 0:00:54.7]} 66. Rh8 {[%clk
0:00:02.9]} 66... Rg1 {[%clk 0:00:54.2]} 67. Rg8 {[%clk 0:00:03.1]} 67... Kf4
{[%clk 0:00:53.7]} 68. Rh8 {[%clk 0:00:03.2]} 68... Rg4 {[%clk 0:00:53]} 69. Kf6
{[%clk 0:00:02.5]} 69... Kg3 {[%clk 0:00:52.9]} 70. Rh6 {[%clk 0:00:02.5]} 70...
h3 {[%clk 0:00:53.2]} 0-1

[Event "Late-Titled-Tuesday-Blitz-May-28-2024"]
[Site "Chess.com"]
[Date "2024.05.28"]
[Round "6"]
[White "Charodej1"]
[Black "nindjaxx8"]
[Result "1-0"]
[WhiteElo "2479"]
[BlackElo "2627"]
[TimeControl "180+1"]
[EndTime "15:07:29 PDT"]
[Termination "Charodej1 won on time"]

1. e4 {[%clk 0:03:00.9]} 1... e6 {[%clk 0:02:57.4]} 2. d4 {[%clk 0:02:59.5]}
2... d5 {[%clk 0:02:56.8]} 3. Nd2 {[%clk 0:02:58.6]} 3... c5 {[%clk 0:02:56.5]}
4. exd5 {[%clk 0:02:56.9]} 4... Qxd5 {[%clk 0:02:56.1]} 5. Ngf3 {[%clk
0:02:55.9]} 5... cxd4 {[%clk 0:02:55.8]} 6. Bc4 {[%clk 0:02:54.8]} 6... Qd6
{[%clk 0:02:53.5]} 7. O-O {[%clk 0:02:42.4]} 7... Nf6 {[%clk 0:02:53.3]} 8. Nb3
{[%clk 0:02:42]} 8... Nc6 {[%clk 0:02:50.2]} 9. Nbxd4 {[%clk 0:02:41.9]} 9...
Nxd4 {[%clk 0:02:49]} 10. Nxd4 {[%clk 0:02:41.7]} 10... Be7 {[%clk 0:02:47.7]}
11. c3 {[%clk 0:02:22.4]} 11... O-O {[%clk 0:02:43.7]} 12. Qf3 {[%clk
0:02:21.3]} 12... Qc7 {[%clk 0:02:41.4]} 13. Bb3 {[%clk 0:02:20.7]} 13... a5
{[%clk 0:02:41.2]} 14. Nb5 {[%clk 0:02:15.3]} 14... Qb6 {[%clk 0:02:33.5]} 15.
a4 {[%clk 0:02:14.4]} 15... Bd7 {[%clk 0:02:33.3]} 16. Be3 {[%clk 0:02:09]}
16... Bc5 {[%clk 0:02:28.2]} 17. Bg5 {[%clk 0:01:53.6]} 17... Be7 {[%clk
0:02:18.3]} 18. Be3 {[%clk 0:01:45.5]} 18... Bc5 {[%clk 0:02:15.6]} 19. Bg5
{[%clk 0:01:45.2]} 19... Bc6 {[%clk 0:02:16]} 20. Qf4 {[%clk 0:01:33.1]} 20...
Nd5 {[%clk 0:02:12.1]} 21. Qh4 {[%clk 0:01:13.2]} 21... f5 {[%clk 0:01:51.3]}
22. Bc4 {[%clk 0:00:56.7]} 22... Rae8 {[%clk 0:01:37.7]} 23. Rae1 {[%clk
0:00:49.9]} 23... Kh8 {[%clk 0:01:23.6]} 24. Kh1 {[%clk 0:00:37.5]} 24... Rf7
{[%clk 0:01:15.9]} 25. Bf4 {[%clk 0:00:37.3]} 25... Nxf4 {[%clk 0:01:12.7]} 26.
Qxf4 {[%clk 0:00:37]} 26... Rfe7 {[%clk 0:01:13]} 27. f3 {[%clk 0:00:29]} 27...
h6 {[%clk 0:01:09.2]} 28. Re2 {[%clk 0:00:26.3]} 28... Bd7 {[%clk 0:01:02.6]}
29. Qd2 {[%clk 0:00:20.6]} 29... e5 {[%clk 0:01:00]} 30. b4 {[%clk 0:00:20.6]}
30... axb4 {[%clk 0:00:59.5]} 31. cxb4 {[%clk 0:00:20.6]} 31... Bd4 {[%clk
0:00:58.8]} 32. a5 {[%clk 0:00:18.5]} 32... Qc6 {[%clk 0:00:55.2]} 33. Rc1
{[%clk 0:00:15.5]} 33... Qg6 {[%clk 0:00:19.1]} 34. Nxd4 {[%clk 0:00:14.4]}
34... exd4 {[%clk 0:00:20]} 35. Rce1 {[%clk 0:00:14.6]} 35... Rxe2 {[%clk
0:00:17.5]} 36. Rxe2 {[%clk 0:00:15.5]} 36... Rxe2 {[%clk 0:00:17.4]} 37. Qxe2
{[%clk 0:00:16.4]} 37... Qd6 {[%clk 0:00:17.3]} 38. Qd2 {[%clk 0:00:15.1]} 38...
Bc6 {[%clk 0:00:16.7]} 39. Bd3 {[%clk 0:00:14.9]} 39... Qe5 {[%clk 0:00:16.5]}
40. Kg1 {[%clk 0:00:14.4]} 40... f4 {[%clk 0:00:11.9]} 41. Qe2 {[%clk
0:00:14.2]} 41... Qe3+ {[%clk 0:00:09.2]} 42. Qxe3 {[%clk 0:00:14.4]} 42... dxe3
{[%clk 0:00:10.1]} 43. Kf1 {[%clk 0:00:14.8]} 43... Kg8 {[%clk 0:00:09.7]} 44.
b5 {[%clk 0:00:15.1]} 44... Bd5 {[%clk 0:00:09.2]} 45. a6 {[%clk 0:00:14]} 45...
bxa6 {[%clk 0:00:08.9]} 46. bxa6 {[%clk 0:00:14.9]} 46... Kf7 {[%clk 0:00:06.4]}
47. a7 {[%clk 0:00:14.8]} 47... Ke7 {[%clk 0:00:06.8]} 48. Be4 {[%clk
0:00:14.1]} 1-0

[Event "Late-Titled-Tuesday-Blitz-May-28-2024"]
[Site "Chess.com"]
[Date "2024.05.28"]
[Round "6"]
[White "Felix-Rose"]
[Black "SharathRk6"]
[Result "0-1"]
[WhiteElo "2298"]
[BlackElo "2535"]
[TimeControl "180+1"]
[EndTime "15:07:29 PDT"]
[Termination "SharathRk6 won by resignation"]

1. e4 {[%clk 0:03:00.9]} 1... e5 {[%clk 0:02:59]} 2. Nf3 {[%clk 0:03:01]} 2...
Nc6 {[%clk 0:02:57.2]} 3. Bb5 {[%clk 0:03:00.7]} 3... a6 {[%clk 0:02:56.9]} 4.
Ba4 {[%clk 0:03:00.8]} 4... Nf6 {[%clk 0:02:56.4]} 5. O-O {[%clk 0:03:00.5]}
5... b5 {[%clk 0:02:56.8]} 6. Bb3 {[%clk 0:03:00.3]} 6... Bc5 {[%clk 0:02:57.4]}
7. a4 {[%clk 0:02:52.6]} 7... Bb7 {[%clk 0:02:55.1]} 8. axb5 {[%clk 0:02:43.4]}
8... axb5 {[%clk 0:02:54.3]} 9. Rxa8 {[%clk 0:02:43.2]} 9... Bxa8 {[%clk
0:02:54.3]} 10. d3 {[%clk 0:02:42.8]} 10... d6 {[%clk 0:02:53.5]} 11. Bg5 {[%clk
0:02:42]} 11... h6 {[%clk 0:02:53]} 12. Bxf6 {[%clk 0:02:42]} 12... Qxf6 {[%clk
0:02:52.4]} 13. Nc3 {[%clk 0:02:42.5]} 13... Na7 {[%clk 0:02:33.6]} 14. Qa1
{[%clk 0:02:22.3]} 14... O-O {[%clk 0:02:31.1]} 15. Qa6 {[%clk 0:02:19.6]} 15...
c6 {[%clk 0:02:09.8]} 16. Ne2 {[%clk 0:02:16]} 16... Qe7 {[%clk 0:01:56.2]} 17.
c3 {[%clk 0:02:03.6]} 17... Bb7 {[%clk 0:01:55.3]} 18. Qa2 {[%clk 0:02:01.4]}
18... Ra8 {[%clk 0:01:50.4]} 19. Ra1 {[%clk 0:01:52.1]} 19... Nc8 {[%clk
0:01:47.5]} 20. Qb1 {[%clk 0:01:49]} 20... Rxa1 {[%clk 0:01:41]} 21. Qxa1 {[%clk
0:01:49.3]} 21... Qd7 {[%clk 0:01:26.9]} 22. Qa2 {[%clk 0:01:47.6]} 22... Qe8
{[%clk 0:01:11.9]} 23. h3 {[%clk 0:01:42.8]} 23... Ne7 {[%clk 0:01:09.1]} 24.
Ng3 {[%clk 0:01:33.6]} 24... Ng6 {[%clk 0:01:00.5]} 25. Nf5 {[%clk 0:01:29.2]}
25... Nf4 {[%clk 0:00:58.8]} 26. d4 {[%clk 0:01:20.2]} 26... exd4 {[%clk
0:00:53.6]} 27. cxd4 {[%clk 0:01:19.9]} 27... Bb4 {[%clk 0:00:17]} 28. Qa7
{[%clk 0:00:57.5]} 28... Qa8 {[%clk 0:00:15.6]} 29. Qxa8+ {[%clk 0:00:36.1]}
29... Bxa8 {[%clk 0:00:14.8]} 30. h4 {[%clk 0:00:31.7]} 30... Kf8 {[%clk
0:00:13.2]} 31. g3 {[%clk 0:00:31.3]} 31... Ne6 {[%clk 0:00:11.3]} 32. Ne3
{[%clk 0:00:25.7]} 32... g6 {[%clk 0:00:08.8]} 33. Nc2 {[%clk 0:00:19.6]} 33...
Ba5 {[%clk 0:00:08.6]} 34. Bxe6 {[%clk 0:00:18.1]} 34... fxe6 {[%clk 0:00:08.6]}
35. Kf1 {[%clk 0:00:18.6]} 35... Ke7 {[%clk 0:00:08.8]} 36. Ke2 {[%clk
0:00:19.2]} 36... c5 {[%clk 0:00:09.1]} 37. Kd3 {[%clk 0:00:19.9]} 37... c4+
{[%clk 0:00:09.2]} 38. Ke3 {[%clk 0:00:19.2]} 38... Bb6 {[%clk 0:00:09.8]} 39.
Nh2 {[%clk 0:00:18.2]} 39... e5 {[%clk 0:00:09.8]} 40. Ng4 {[%clk 0:00:17.6]}
40... h5 {[%clk 0:00:10.4]} 41. Nh2 {[%clk 0:00:15.3]} 41... b4 {[%clk
0:00:10.7]} 42. Nf3 {[%clk 0:00:12.2]} 42... b3 {[%clk 0:00:10.8]} 43. Na3
{[%clk 0:00:12.1]} 43... exd4+ {[%clk 0:00:08.9]} 44. Nxd4 {[%clk 0:00:11.7]}
44... d5 {[%clk 0:00:09.5]} 45. exd5 {[%clk 0:00:11.5]} 45... Bxd5 {[%clk
0:00:10.1]} 46. Nb5 {[%clk 0:00:12]} 46... Kf6 {[%clk 0:00:08.8]} 47. Nc3 {[%clk
0:00:12.5]} 47... Ke5 {[%clk 0:00:08.6]} 48. f4+ {[%clk 0:00:12.8]} 48... Kd6
{[%clk 0:00:08.2]} 49. Nb5+ {[%clk 0:00:12.3]} 49... Kc5 {[%clk 0:00:08.5]} 50.
Nc3 {[%clk 0:00:13]} 50... Bb7 {[%clk 0:00:07.6]} 51. Nde2 {[%clk 0:00:08.9]}
51... Kb4+ {[%clk 0:00:07.5]} 52. Kd2 {[%clk 0:00:09.6]} 52... Bf3 {[%clk
0:00:06.7]} 53. Ng1 {[%clk 0:00:09.8]} 53... Bxg1 {[%clk 0:00:06.1]} 0-1